fUST/lending_fUST_20240117
["ID","MTS","AMOUNT","RATE_DAILY","PERIOD"]
[311829416,1705441844611,-4091.77055331,0.00032052,4]
[311829417,1705441844620,-2666.64546245,0.00032052,4]
[311829418,1705441844629,-467.39165692,0.00032052,4]
[311829419,1705441844639,-260.47007699,0.00032052,4]
[311829420,1705441844648,-6683.17586023,0.00032052,4]
[311829421,1705441844657,-1056.03690816,0.00032052,7]
[311829422,1705441844666,-225.94554747,0.00032053,4]
[311829423,1705441844675,-494.27096294,0.00032053,4]
[311829424,1705441844685,-500.0,0.00032053,4]
[311829425,1705441844694,-500.0,0.00032053,4]
[311829426,1705441844703,-500.0,0.00032053,4]
[311829427,1705441844712,-220.15109103,0.00032053,4]
[311829428,1705441844723,-500.0,0.00032053,4]
[311829429,1705441844732,-161.26487973,0.00032053,4]
[311829430,1705441844741,-500.0,0.00032053,4]
[311829431,1705441844750,-500.0,0.00032053,4]
[311829432,1705441844759,-389.58477881,0.00032053,4]
[311829433,1705441844768,-500.0,0.00032053,4]
[311829434,1705441844777,-500.0,0.00032053,4]
[311829435,1705441844787,-500.0,0.00032053,4]
[311829436,1705441844796,-656.74,0.00032053,2]
[311829437,1705441844805,-656.74,0.00032053,2]
[311829438,1705441844814,-656.74,0.00032053,2]
[311829439,1705441844824,-656.74,0.00032053,2]
[311829440,1705441844833,-656.74,0.00032053,2]
[311829441,1705441844842,-656.74,0.00032053,2]
[311829442,1705441844854,-656.75,0.00032053,2]
[311829443,1705441844863,-931.663252,0.00032054,2]
[311829444,1705441844873,-931.663252,0.00032054,2]
[311829445,1705441844883,-151.0,0.00032054,2]
[311829446,1705441844893,-236.749873,0.00032054,2]
[311829447,1705441844902,-236.749873,0.00032054,2]
[311829448,1705441844911,-151.0,0.00032054,2]
[311829449,1705441844921,-151.0,0.00032054,2]
[311829450,1705441844930,-500.0,0.00032054,2]
[311829451,1705441844939,-356.33341781,0.00032054,2]
[311829452,1705441844948,-623.4,0.00032054,2]
[311829453,1705441844958,-647.55,0.00032054,2]
[311829454,1705441844967,-500.0,0.00032054,2]
[311829455,1705441844978,-500.0,0.00032054,2]
[311829456,1705441844987,-500.0,0.00032054,2]
[311829457,1705441844996,-502.07568279,0.00032054,2]
[311829458,1705441845004,-500.0,0.00032054,2]
[311829459,1705441845014,-500.0,0.00032054,2]
[311829460,1705441845023,-500.0,0.00032054,2]
[311829461,1705441845032,-500.0,0.00032054,2]
[311829462,1705441845041,-500.0,0.00032054,2]
[311829463,1705441845051,-500.0,0.00032054,2]
[311829464,1705441845060,-500.0,0.00032054,2]
[311829465,1705441845069,-500.0,0.00032054,2]
[311829466,1705441845140,-500.0,0.00032054,2]
[311829467,1705441845149,-324.19753497,0.00032054,2]
[311829468,1705441845158,-500.0,0.00032054,2]
[311829469,1705441845167,-500.0,0.00032054,2]
[311829470,1705441845177,-500.0,0.00032054,2]
[311829471,1705441845186,-484.88564107,0.00032054,2]
[311829472,1705441845196,-500.0,0.00032054,2]
[311829473,1705441845205,-500.0,0.00032054,2]
[311829474,1705441845214,-593.75655973,0.00032054,2]
[311829475,1705441845225,-500.0,0.00032054,2]
[311829476,1705441845234,-500.0,0.00032054,2]
[311829477,1705441845244,-500.0,0.00032054,2]
[311829478,1705441845253,-421.46153753,0.00032054,2]
[311829479,1705441845262,-500.0,0.00032054,2]
[311829480,1705441845272,-500.0,0.00032054,2]
[311829481,1705441845281,-967.4,0.00032054,2]
[311829482,1705441845290,-150.0,0.00032054,2]
[311829483,1705441845299,-409.77770122,0.00032054,2]
[311829484,1705441845308,-500.0,0.00032054,2]
[311829486,1705441845317,-500.0,0.00032054,2]
[311829487,1705441845326,-500.0,0.00032054,2]
[311829489,1705441845338,-405.03025152,0.00032054,2]
[311829491,1705441845347,-500.0,0.00032054,4]
[311829493,1705441845357,-381.10965827,0.00032054,2]
[311829495,1705441845366,-500.0,0.00032054,2]
[311829497,1705441845376,-1328.08,0.00032054,2]
[311829499,1705441845386,-678.26,0.00032054,2]
[311829501,1705441845395,-500.0,0.00032054,2]
[311829502,1705441845405,-500.0,0.00032054,2]
[311829505,1705441845414,-500.0,0.00032054,2]
[311829507,1705441845424,-500.0,0.00032054,2]
[311829509,1705441845433,-500.0,0.00032054,2]
[311829511,1705441845443,-682.47,0.00032054,2]
[311829514,1705441845456,-500.0,0.00032054,2]
[311829516,1705441845465,-500.0,0.00032054,2]
[311829519,1705441845475,-831.03,0.00032054,2]
[311829522,1705441845484,-500.0,0.00032054,2]
[311829524,1705441845493,-500.0,0.00032054,2]
[311829527,1705441845502,-500.0,0.00032054,2]
[311829529,1705441845511,-500.0,0.00032054,2]
[311829532,1705441845521,-501.97,0.00032054,2]
[311829534,1705441845530,-500.0,0.00032054,2]
[311829537,1705441845539,-500.0,0.00032054,2]
[311829538,1705441845548,-500.0,0.00032054,2]
[311829540,1705441845557,-500.0,0.00032054,2]
[311829542,1705441845566,-500.0,0.00032054,2]
[311829544,1705441845575,-288.55963718,0.00032054,2]
[311829545,1705441845584,-500.0,0.00032054,2]
[311829547,1705441845593,-239.06152815,0.00032054,2]
[311829548,1705441845602,-507.71507767,0.00032054,2]
[311829550,1705441845612,-576.92,0.00032054,2]
[311829551,1705441845621,-500.0,0.00032054,2]
[311829553,1705441845631,-500.0,0.00032054,2]
[311829555,1705441845640,-975.1,0.00032054,2]
[311829556,1705441845649,-500.0,0.00032054,2]
[311829557,1705441845657,-500.0,0.00032054,2]
[311829558,1705441845666,-500.0,0.00032054,2]
[311829559,1705441845675,-1197.59,0.00032054,2]
[311829560,1705441845685,-500.0,0.00032054,2]
[311829562,1705441845694,-500.0,0.00032054,2]
[311829563,1705441845703,-500.0,0.00032054,2]
[311829565,1705441845712,-1273.52,0.00032054,2]
[311829566,1705441845721,-500.0,0.00032054,2]
[311829567,1705441845731,-500.0,0.00032054,2]
[311829568,1705441845740,-6529.07,0.00032054,2]
[311829569,1705441845750,-500.0,0.00032054,2]
[311829570,1705441845759,-500.0,0.00032054,2]
[311829571,1705441845768,-500.0,0.00032054,2]
[311829572,1705441845777,-413.27206186,0.00032054,2]
[311829573,1705441845786,-8471.01,0.00032054,2]
[311829574,1705441845795,-500.0,0.00032054,2]
[311829575,1705441845805,-675.68,0.00032054,2]
[311829576,1705441845814,-1531.23,0.00032054,2]
[311829577,1705441845825,-2480.17,0.00032054,2]
[311829578,1705441845834,-1987.92,0.00032054,2]
[311829579,1705441845843,-500.0,0.00032054,2]
[311829580,1705441845855,-665.23,0.00032054,2]
[311829581,1705441845865,-500.0,0.00032054,2]
[311829582,1705441845875,-500.0,0.00032054,2]
[311829583,1705441845885,-500.0,0.00032054,2]
[311829584,1705441845895,-500.0,0.00032054,2]
[311829586,1705441845905,-2591.26,0.00032054,2]
[311829588,1705441845914,-500.0,0.00032054,2]
[311829590,1705441845924,-207.349602,0.00032054,2]
[311829591,1705441845935,-637.43085596,0.00032054,2]
[311829592,1705441845944,-500.0,0.00032054,2]
[311829593,1705441845953,-500.0,0.00032054,2]
[311829595,1705441845962,-2042.25,0.00032054,2]
[311829596,1705441845971,-4391.63,0.00032054,2]
[311829598,1705441845982,-1346.29,0.00032054,2]
[311829599,1705441845990,-534.200587,0.00032054,2]
[311829600,1705441845999,-316.7153917,0.00032054,2]
[311829601,1705441846008,-1783.47,0.00032054,2]
[311829602,1705441846019,-500.0,0.00032054,2]
[311829603,1705441846028,-500.0,0.00032054,2]
[311829604,1705441846037,-601.9,0.00032054,2]
[311829605,1705441846047,-500.0,0.00032054,2]
[311829606,1705441846056,-8756.16761986,0.00032054,2]
[311829607,1705441846324,-394.89213205,0.0002896,2]
[311829608,1705441846341,-4321.93425006,0.0002896,2]
[311829609,1705441846351,-526.19977784,0.0002896,2]
[311829610,1705441846361,-2857.85483986,0.00031779,2]
[311829611,1705441846377,-18024.18313329,0.00031779,2]
[311829612,1705441846387,-509.3977837,0.0003178,2]
[311829613,1705441846396,-500.0,0.0003178,2]
[311829614,1705441846406,-6111.56238014,0.00032054,2]
[311829615,1705441846478,-26762.62,0.00032054,2]
[311829616,1705441846487,-500.0,0.00032054,2]
[311829617,1705441846497,-1938.02,0.00032054,2]
[311829618,1705441846506,-500.0,0.00032054,2]
[311829619,1705441846515,-476.19454961,0.00032054,2]
[311829620,1705441846524,-500.0,0.00032054,2]
[311829621,1705441846533,-500.0,0.00032054,2]
[311829622,1705441846544,-262.04807928,0.00032054,2]
[311829623,1705441846558,-237.95192072,0.00032054,2]
[311829624,1705441846567,-500.0,0.00032054,2]
[311829625,1705441846576,-500.0,0.00032054,2]
[311829626,1705441846585,-287.58287356,0.00032054,2]
[311829627,1705441846597,-305.75,0.00032054,2]
[311829628,1705441846609,-362.68449822,0.00032054,2]
[311829629,1705441846620,-5115.67262822,0.00032054,2]
[311829630,1705441846629,-500.0,0.00032054,2]
[311829631,1705441846639,-1325.88,0.00032054,2]
[311829632,1705441846648,-500.0,0.00032054,2]
[311829633,1705441846657,-500.0,0.00032054,2]
[311829634,1705441846667,-500.0,0.00032054,2]
[311829635,1705441846676,-500.0,0.00032054,2]
[311829636,1705441846686,-500.0,0.00032054,2]
[311829637,1705441846695,-500.0,0.00032054,2]
[311829638,1705441846704,-420.88731782,0.00032054,2]
[311829653,1705442034257,2748.4075906,0.0001631,2]
[311829654,1705442034284,1922.15664521,0.0001631,2]
[311829667,1705442100777,10290.39182557,0.0001631,2]
[311829668,1705442102718,534.59567802,0.0001631,2]
[311829669,1705442103953,277.3697054,0.0001631,2]
[311829670,1705442103987,154.95351395,0.0001631,2]
[311829671,1705442104594,3835.26426086,0.0001631,2]
[311829672,1705442107794,620.05138771,0.0001631,2]
[311829673,1705442107904,154.95351395,0.0002222,4]
[311829674,1705442112762,7365.21698328,0.0001631,2]
[311829675,1705442112784,4500.0,0.0001631,2]
[311829676,1705442112810,272001.77204507,0.0001631,2]
[311829678,1705442116787,10290.39182557,0.0001631,2]
[311829679,1705442117983,154.95351395,0.0001631,2]
[311829680,1705442118639,3835.26426086,0.0001631,2]
[311829681,1705442118714,534.59567802,0.0001631,2]
[311829682,1705442119970,277.3697054,0.0001631,2]
[311829683,1705442122393,154.95351395,0.0001631,2]
[311829684,1705442125777,620.05138771,0.0001631,2]
[311829685,1705442126763,105374.54520896,0.0001631,2]
[311829686,1705442136843,510.39251452,0.0001631,2]
[311829687,1705442137989,155.61139688,0.0001631,2]
[311829688,1705442138596,3835.26426086,0.0001631,2]
[311829689,1705442138769,2700.77599938,0.0001631,2]
[311829690,1705442139956,277.3697054,0.0001631,2]
[311829691,1705442143779,160.60890313,0.0001631,2]
[311829692,1705442144276,154.95351395,0.0001631,2]
[311829698,1705442156605,3835.26426086,0.0001631,2]
[311829699,1705442158283,155.58775357,0.0001631,2]
[311829700,1705442161641,277.3697054,0.0001631,2]
[311829701,1705442174600,2724.43549328,0.0001631,2]
[311829705,1705442183708,277.3697054,0.0001631,2]
[311829711,1705442207641,277.3697054,0.0001631,2]
[311829716,1705442227642,277.3697054,0.0001631,2]
[311829719,1705442243649,248.83380815,0.0001631,2]
[311829729,1705442365938,154.95351395,0.0002222,4]
[311829730,1705442380474,88.31670412,0.00023088,7]
[311829736,1705442520955,154.95351395,0.00020983,4]
[311829738,1705442560424,5000.0,0.00018001,2]
[311829740,1705442599462,154.95351395,0.0002222,4]
[311829810,1705442966156,-5998.21298933,0.00020966,2]
[311829811,1705442966178,-2485.64659726,0.00020966,2]
[311829812,1705442966198,-8752.33712952,0.00020967,2]
[311829813,1705442966218,-1058.62344323,0.00021,2]
[311829814,1705442966240,-166.867496,0.00022046,2]
[311829815,1705442966259,-176.8543022,0.0002222,2]
[311829816,1705442966279,-6251.74348385,0.00022221,2]
[311829823,1705442978025,154.95351395,0.0002222,4]
[311829867,1705443032036,-418.51762617,0.00022221,2]
[311829869,1705443032047,-609.91927088,0.00022221,2]
[311829871,1705443032057,-929.9795061,0.00022427,2]
[311829873,1705443032066,-151.69082327,0.00022441,2]
[311829874,1705443032075,-1059.25431895,0.00022491,2]
[311829875,1705443032088,-23840.74568105,0.00022491,2]
[311829876,1705443032097,-987.5831246,0.00022523,2]
[311829877,1705443032106,-633.5164446,0.00022727,2]
[311829878,1705443032115,-244.3681799,0.0002313,2]
[311829879,1705443032125,-1986.17747693,0.00024,2]
[311829880,1705443032134,-200.0,0.00024739,7]
[311829881,1705443032143,-3000.0,0.00025,2]
[311829882,1705443032152,-1045.05948708,0.00025,2]
[311829883,1705443032162,-270.45653009,0.00025318,2]
[311829884,1705443032174,-1195.92132754,0.00025318,2]
[311829885,1705443032184,-155.83792479,0.00025318,2]
[311829886,1705443032194,-168.56703739,0.00025318,2]
[311829887,1705443032203,-307.17238232,0.00025318,2]
[311829888,1705443032212,-971.76523249,0.00025319,2]
[311829889,1705443032221,-10090.15920986,0.00025319,2]
[311829890,1705443032231,-526.19977784,0.00026,2]
[311829891,1705443032240,-154.95351395,0.00026111,4]
[311829892,1705443032249,-280.0,0.00027213,15]
[311829893,1705443032259,-5998.21298933,0.00027561,2]
[311829894,1705443032268,-262.7092029,0.00028423,2]
[311829895,1705443032277,-1498.9,0.00029002,3]
[311829896,1705443032286,-1249.08,0.00029002,3]
[311829897,1705443032295,-1394.10097555,0.00029012,2]
[311829898,1705443032304,-460.7502742,0.00029012,2]
[311829899,1705443032314,-752.85707652,0.00029012,2]
[311829900,1705443032323,-331.96497418,0.00029012,2]
[311829901,1705443032332,-154.9690062,0.00029012,2]
[311829902,1705443032341,-2995.10791787,0.00029012,2]
[311829903,1705443032350,-174.6371477,0.00029012,2]
[311829904,1705443032359,-2101.23068297,0.00029012,2]
[311829905,1705443032368,-7525.85111728,0.00029012,2]
[311829906,1705443032377,-617.89144172,0.00029012,2]
[311829907,1705443032386,-317.67539315,0.00029013,2]
[311829908,1705443032395,-4091.77055331,0.00029013,2]
[311829909,1705443032405,-6508.94356363,0.00029014,4]
[311829933,1705443038137,-2485.64659726,0.0002756,2]
[311829936,1705443038148,-5527.47440054,0.00029014,4]
[311829938,1705443038158,-87595.10569853,0.00029014,4]
[311829939,1705443038167,-5210.06355375,0.00029014,4]
[311829941,1705443038178,-1500.0,0.000297,2]
[311829943,1705443038187,-1023.20486373,0.000298,2]
[311829946,1705443038197,-391.0,0.00029934,15]
[311829947,1705443038206,-243.86975387,0.0003,4]
[311829950,1705443038216,-1500.0,0.000307,2]
[311829952,1705443038227,-5000.0,0.00031223,10]
[311829953,1705443038237,-1230.62293058,0.0003146,4]
[311829955,1705443038246,-150.0,0.00031627,2]
[311829958,1705443038257,-949.865579,0.0003168,2]
[311829960,1705443038268,-1500.0,0.000317,2]
[311829962,1705443038278,-237.70431469,0.00031778,4]
[311829964,1705443038288,-1056.03690816,0.00031778,7]
[311829965,1705443038297,-225.94554747,0.00031778,4]
[311829966,1705443038306,-260.47007699,0.00031778,4]
[311829967,1705443038315,-6683.17586023,0.00031778,4]
[311829968,1705443038323,-164.97224594,0.00031778,4]
[311829969,1705443038332,-467.39165692,0.00031778,4]
[311829970,1705443038341,-333.58710514,0.00031779,4]
[311829971,1705443038351,-500.0,0.00031779,2]
[311829972,1705443038360,-500.0,0.00031779,2]
[311829973,1705443038369,-500.0,0.00031779,2]
[311829974,1705443038377,-207.85288165,0.00031779,2]
[311829975,1705443038386,-500.0,0.00031779,2]
[311829976,1705443038395,-500.0,0.00031779,2]
[311829977,1705443038404,-631.74505248,0.00031779,2]
[311829978,1705443038413,-500.0,0.00031779,2]
[311829979,1705443038421,-500.0,0.00031779,2]
[311829980,1705443038430,-525.4018209,0.00031779,2]
[311829981,1705443038439,-166.50962894,0.00031779,2]
[311829982,1705443038447,-396.62684728,0.00031779,2]
[311829983,1705443038456,-236.83959786,0.00031779,2]
[311829984,1705443038465,-500.0,0.00031779,2]
[311829985,1705443038474,-382.36137955,0.00031779,2]
[311829986,1705443038483,-500.0,0.00031779,2]
[311829987,1705443038492,-500.0,0.00031779,2]
[311829988,1705443038501,-500.0,0.00031779,2]
[311829989,1705443038510,-500.0,0.00031779,2]
[311829990,1705443038518,-242.41959671,0.00031779,2]
[311829991,1705443038528,-500.0,0.00031779,2]
[311829992,1705443038536,-500.0,0.00031779,2]
[311829993,1705443038545,-499.99999999,0.00031779,2]
[311829994,1705443038553,-252.69802098,0.00031779,2]
[311829995,1705443038562,-500.0,0.0003178,2]
[311829996,1705443038571,-500.0,0.0003178,2]
[311829997,1705443038580,-500.0,0.0003178,2]
[311829998,1705443038589,-356.33341781,0.0003178,2]
[311829999,1705443038597,-500.0,0.0003178,2]
[311830001,1705443038606,-500.0,0.0003178,2]
[311830003,1705443038615,-375.15030904,0.0003178,2]
[311830005,1705443038624,-500.0,0.0003178,2]
[311830016,1705443038633,-593.75655973,0.0003178,2]
[311830018,1705443038726,-500.0,0.0003178,2]
[311830020,1705443038735,-502.24408651,0.0003178,2]
[311830022,1705443038744,-500.0,0.0003178,2]
[311830024,1705443038753,-500.0,0.0003178,2]
[311830026,1705443038762,-150.0,0.0003178,2]
[311830028,1705443038771,-500.0,0.0003178,4]
[311830030,1705443038780,-500.0,0.0003178,2]
[311830032,1705443038789,-500.0,0.0003178,2]
[311830034,1705443038798,-500.0,0.0003178,2]
[311830036,1705443038807,-381.10965827,0.0003178,2]
[311830038,1705443038817,-500.0,0.0003178,2]
[311830040,1705443038826,-500.0,0.0003178,2]
[311830042,1705443038835,-405.03025152,0.0003178,2]
[311830044,1705443038846,-500.0,0.0003178,2]
[311830046,1705443038855,-500.0,0.0003178,2]
[311830048,1705443038864,-500.0,0.0003178,2]
[311830050,1705443038874,-500.0,0.0003178,2]
[311830052,1705443038883,-500.0,0.0003178,2]
[311830055,1705443038894,-500.0,0.0003178,2]
[311830056,1705443038903,-528.84,0.0003178,2]
[311830058,1705443038912,-1000.0,0.0003178,2]
[311830060,1705443038921,-500.0,0.0003178,2]
[311830062,1705443038930,-500.0,0.0003178,2]
[311830064,1705443038940,-235.15936769,0.0003178,2]
[311830066,1705443038949,-288.55963718,0.0003178,2]
[311830069,1705443038958,-500.0,0.0003178,2]
[311830070,1705443038967,-619.09382054,0.0003178,2]
[311830073,1705443038976,-500.0,0.0003178,2]
[311830075,1705443038985,-500.0,0.0003178,2]
[311830077,1705443038995,-500.0,0.0003178,2]
[311830079,1705443039005,-500.0,0.0003178,2]
[311830081,1705443039013,-500.0,0.0003178,2]
[311830083,1705443039023,-605.78919628,0.0003178,2]
[311830084,1705443039032,-500.0,0.0003178,2]
[311830086,1705443039041,-500.0,0.0003178,2]
[311830088,1705443039051,-545.97310456,0.0003178,2]
[311830090,1705443039060,-500.0,0.0003178,2]
[311830092,1705443039070,-500.0,0.0003178,2]
[311830094,1705443039079,-500.0,0.0003178,2]
[311830096,1705443039088,-500.0,0.0003178,2]
[311830098,1705443039097,-506.47391452,0.0003178,2]
[311830100,1705443039106,-366.94048723,0.0003178,2]
[311830102,1705443039115,-500.0,0.0003178,2]
[311830104,1705443039124,-650.0,0.0003178,2]
[311830106,1705443039134,-999.42,0.0003178,2]
[311830108,1705443039143,-500.0,0.0003178,2]
[311830110,1705443039152,-500.0,0.0003178,2]
[311830112,1705443039161,-500.0,0.0003178,2]
[311830114,1705443039170,-365.80980879,0.0003178,2]
[311830116,1705443039185,-500.0,0.0003178,2]
[311830118,1705443039196,-500.0,0.0003178,2]
[311830120,1705443039205,-500.0,0.0003178,2]
[311830122,1705443039214,-1290.2,0.0003178,2]
[311830124,1705443039224,-500.0,0.0003178,2]
[311830126,1705443039233,-500.0,0.0003178,2]
[311830128,1705443039243,-500.0,0.0003178,2]
[311830130,1705443039254,-500.0,0.0003178,2]
[311830132,1705443039265,-500.0,0.0003178,2]
[311830135,1705443039274,-500.0,0.0003178,2]
[311830136,1705443039283,-500.0,0.0003178,2]
[311830138,1705443039292,-343.19826167,0.0003178,2]
[311830140,1705443039301,-500.0,0.0003178,2]
[311830142,1705443039310,-500.0,0.0003178,2]
[311830145,1705443039320,-500.0,0.0003178,2]
[311830146,1705443039329,-500.0,0.0003178,2]
[311830148,1705443039338,-500.0,0.0003178,2]
[311830150,1705443039347,-501.67392766,0.0003178,2]
[311830152,1705443039356,-500.0,0.0003178,2]
[311830154,1705443039365,-500.0,0.0003178,2]
[311830157,1705443039375,-500.0,0.0003178,2]
[311830159,1705443039384,-500.0,0.0003178,2]
[311830161,1705443039393,-500.0,0.0003178,2]
[311830163,1705443039402,-500.0,0.0003178,2]
[311830164,1705443039411,-500.0,0.0003178,2]
[311830166,1705443039421,-500.0,0.0003178,2]
[311830168,1705443039430,-576.82,0.0003178,2]
[311830170,1705443039439,-500.0,0.0003178,2]
[311830172,1705443039449,-273.96352238,0.0003178,2]
[311830174,1705443039458,-500.0,0.0003178,2]
[311830176,1705443039467,-502.45515726,0.0003178,2]
[311830178,1705443039476,-500.0,0.0003178,2]
[311830180,1705443039485,-627.31,0.0003178,2]
[311830182,1705443039495,-320.69085197,0.0003178,2]
[311830184,1705443039504,-500.0,0.0003178,2]
[311830186,1705443039513,-1272.75,0.0003178,2]
[311830188,1705443039523,-500.0,0.0003178,2]
[311830190,1705443039532,-500.0,0.0003178,2]
[311830192,1705443039541,-500.0,0.0003178,2]
[311830194,1705443039550,-500.0,0.0003178,2]
[311830196,1705443039559,-500.0,0.0003178,2]
[311830198,1705443039568,-500.0,0.0003178,2]
[311830200,1705443039577,-500.0,0.0003178,2]
[311830202,1705443039586,-500.0,0.0003178,2]
[311830204,1705443039594,-500.0,0.0003178,2]
[311830206,1705443039603,-796.4,0.0003178,2]
[311830208,1705443039613,-500.0,0.0003178,2]
[311830210,1705443039622,-500.0,0.0003178,2]
[311830212,1705443039631,-310.11588725,0.0003178,2]
[311830214,1705443039640,-200.0,0.0003178,2]
[311830216,1705443039649,-500.0,0.0003178,2]
[311830218,1705443039658,-682.53,0.0003178,2]
[311830220,1705443039667,-500.0,0.0003178,2]
[311830222,1705443039677,-500.0,0.0003178,2]
[311830224,1705443039685,-502.41179207,0.0003178,2]
[311830226,1705443039694,-500.0,0.0003178,2]
[311830228,1705443039703,-500.0,0.0003178,2]
[311830230,1705443039712,-521.1810761,0.0003178,2]
[311830232,1705443039721,-500.0,0.0003178,2]
[311830234,1705443039730,-934.47,0.0003178,2]
[311830236,1705443039740,-500.0,0.0003178,2]
[311830238,1705443039750,-500.0,0.0003178,2]
[311830240,1705443039759,-500.0,0.0003178,2]
[311830242,1705443039771,-500.0,0.0003178,2]
[311830244,1705443039781,-500.0,0.0003178,2]
[311830246,1705443039790,-500.0,0.0003178,2]
[311830248,1705443039799,-500.0,0.0003178,2]
[311830250,1705443039809,-500.0,0.0003178,2]
[311830252,1705443039817,-533.04482438,0.0003178,2]
[311830254,1705443039826,-500.0,0.0003178,2]
[311830256,1705443039835,-500.0,0.0003178,2]
[311830258,1705443039844,-500.0,0.0003178,2]
[311830260,1705443039853,-500.0,0.0003178,2]
[311830262,1705443039862,-500.0,0.0003178,2]
[311830264,1705443039871,-495.49025751,0.0003178,2]
[311830266,1705443039880,-500.0,0.0003178,2]
[311830268,1705443039889,-500.0,0.0003178,2]
[311830270,1705443039898,-500.0,0.0003178,2]
[311830272,1705443039907,-500.0,0.0003178,2]
[311830274,1705443039916,-651.2,0.0003178,2]
[311830276,1705443039925,-500.0,0.0003178,2]
[311830278,1705443039934,-500.0,0.0003178,2]
[311830280,1705443039943,-500.0,0.0003178,2]
[311830282,1705443039952,-635.32,0.0003178,2]
[311830284,1705443039961,-601.06064518,0.0003178,2]
[311830286,1705443039970,-500.0,0.0003178,2]
[311830288,1705443039979,-500.0,0.0003178,2]
[311830290,1705443039988,-500.0,0.0003178,2]
[311830294,1705443039997,-500.0,0.0003178,2]
[311830296,1705443040006,-500.0,0.0003178,2]
[311830299,1705443040015,-361.94622459,0.0003178,2]
[311830301,1705443040024,-500.41994784,0.0003178,2]
[311830303,1705443040034,-669.2,0.0003178,2]
[311830305,1705443040043,-500.0,0.0003178,2]
[311830307,1705443040053,-414.16133919,0.0003178,2]
[311830310,1705443040062,-505.44493024,0.0003178,2]
[311830313,1705443040073,-500.0,0.0003178,2]
[311830316,1705443040082,-503.55595716,0.0003178,2]
[311830319,1705443040092,-500.0,0.0003178,2]
[311830322,1705443040101,-1190.86,0.0003178,2]
[311830325,1705443040110,-500.0,0.0003178,2]
[311830328,1705443040119,-2457.76,0.0003178,2]
[311830331,1705443040128,-500.0,0.0003178,2]
[311830334,1705443040137,-500.0,0.0003178,2]
[311830336,1705443040147,-254.73333895,0.0003178,2]
[311830340,1705443040156,-500.0,0.0003178,2]
[311830342,1705443040165,-500.0,0.0003178,2]
[311830346,1705443040178,-501.0625085,0.0003178,2]
[311830348,1705443040187,-500.0,0.0003178,2]
[311830351,1705443040196,-554.32556193,0.0003178,2]
[311830355,1705443040206,-500.0,0.0003178,2]
[311830358,1705443040217,-500.0,0.0003178,2]
[311830361,1705443040226,-510.22549501,0.0003178,2]
[311830365,1705443040236,-6257.02,0.0003178,2]
[311830368,1705443040246,-500.0,0.0003178,2]
[311830371,1705443040256,-517.7478727,0.0003178,2]
[311830374,1705443040264,-500.0,0.0003178,2]
[311830377,1705443040273,-500.0,0.0003178,2]
[311830379,1705443040282,-4589.1,0.0003178,2]
[311830382,1705443040291,-506.7967264,0.0003178,2]
[311830386,1705443040301,-500.0,0.0003178,2]
[311830389,1705443040311,-8118.06,0.0003178,2]
[311830390,1705443040320,-1531.23,0.0003178,2]
[311830393,1705443040330,-532.08795268,0.0003178,2]
[311830397,1705443040340,-500.0,0.0003178,2]
[311830399,1705443040349,-500.0,0.0003178,2]
[311830403,1705443040359,-1000.0,0.0003178,2]
[311830405,1705443040368,-500.0,0.0003178,2]